bitfinex-derivatives/quotes_SOLF0:USTF0_20251201
["timestamp","ask_amount","ask_price","bid_price","bid_amount"]
[1764551733957,0.05709961,128.57,128.54,0.05168328]
[1764551734338,0.05709961,128.57,128.54,3.39168328]
[1764551735247,0.05709961,128.57,128.54,0.05168328]
[1764551735552,7.05719961,128.57,128.54,0.05168328]
[1764551735740,0.05709961,128.57,128.54,0.05168328]
[1764551737152,0.05709961,128.57,128.54,3.39168328]
[1764551739358,125.09028904,128.63,128.54,3.39168328]
[1764551739359,118.0,128.63,128.54,3.39168328]
[1764551739551,118.0,128.63,128.54,3.34]
[1764551740147,7.052941,128.6,128.57,0.05683096]
[1764551740551,7.052941,128.6,128.57,3.39683096]
[1764551741556,118.0,128.59,128.57,3.39683096]
[1764551741752,124.9993,128.59,128.57,0.05683096]
[1764551746558,118.0,128.58,128.57,0.05683096]
[1764551747760,118.0,128.58,128.41,62.0]
[1764551747761,117.94316904,128.57,128.46,3.34]
[1764551748254,124.94336904,128.57,128.49,3.34]
[1764551748558,117.94316904,128.56,128.49,3.34]
[1764551748752,0.05927866,128.54,128.52,3.34]
[1764551750264,117.94316904,128.56,128.52,3.34]
[1764551751366,117.94316904,128.62,128.53,3.35]
[1764551751962,124.94066904,128.62,128.53,3.35]
[1764551752564,0.05407482,128.59,128.56,3.40213469]
[1764551752764,6.9955,128.65,128.56,3.40213469]
[1764551752961,5.7237715,128.64,128.56,3.35]
[1764551753159,7.08186491,128.67,128.56,3.35]
[1764551753357,7.08186491,128.67,128.49,30.95191196]
[1764551753358,5.71778862,128.66,128.49,23.86162292]
[1764551753666,0.0517869,128.59,128.57,3.35]
[1764551753860,0.05746557,128.59,128.57,3.40375258]
[1764551755759,0.05746557,128.59,128.57,0.05375258]
[1764551756059,5.72982455,128.58,128.57,0.05375258]
[1764551756457,0.05746557,128.59,128.57,0.05375258]
[1764551756654,0.05746557,128.59,128.57,3.40375258]
[1764551757366,7.06508154,128.65,128.61,6.9973]
[1764551757566,3.16,128.7,128.62,3.35]
[1764551757567,9.02580078,128.69,128.62,3.35]
[1764551757764,5.74908,128.68,128.62,3.35]
[1764551757965,3.16,128.66,128.57,3.35]
[1764551758168,3.16,128.64,128.57,3.35]
[1764551758374,0.05427136,128.62,128.6,3.35]
[1764551758672,0.05706694,128.62,128.6,3.39963557]
[1764551760567,3.21706694,128.62,128.6,0.04963557]
[1764551760756,5.72375785,128.61,128.6,0.04963557]
[1764551761271,6.995,128.66,128.6,3.39963557]
[1764551761570,5.72772658,128.65,128.6,3.39963557]
[1764551761763,6.995,128.66,128.6,3.39963557]
[1764551761969,5.73073031,128.65,128.6,3.39963557]
[1764551762172,0.05766397,128.64,128.6,3.39963557]
[1764551762475,121.16,128.63,128.6,0.04963557]
[1764551762769,118.0,128.62,128.6,3.39963557]
[1764551763469,3.21766397,128.64,128.55,7.09028904]
[1764551763675,3.16,128.62,128.53,3.35]
[1764551763885,8.89592025,128.61,128.53,3.35]
[1764551764173,3.16,128.64,128.53,3.35]
[1764551764368,8.90146835,128.63,128.53,3.35]
[1764551764563,5.74146835,128.62,128.53,3.35]
[1764551764766,0.05064969,128.59,128.56,3.40626058]
[1764551764965,3.21064969,128.59,128.56,0.05626058]
[1764551765163,3.16,128.57,128.5,3.35]
[1764551765569,3.16,128.62,128.5,3.35]
[1764551765764,3.16,128.6,128.52,3.35]
[1764551765969,3.16,128.63,128.52,3.35]
[1764551766173,0.05239536,128.59,128.56,3.40969364]
[1764551767386,3.16,128.67,128.58,3.35]
[1764551767683,5.74361869,128.66,128.59,6.9982]
[1764551767882,3.16,128.67,128.6,3.35]
[1764551768080,5.74327583,128.66,128.6,3.35]
[1764551768281,3.16,128.67,128.6,3.35]
[1764551768478,0.05960891,128.65,128.62,0.05781414]
[1764551768879,0.05960891,128.65,128.62,3.40781414]
[1764551769485,6.9919,128.72,128.64,3.35]
[1764551769687,5.75054091,128.71,128.64,3.35]
[1764551769992,6.9886,128.78,128.7,3.35]
[1764551770190,3.16,128.8,128.7,3.35]
[1764551770588,0.05739385,128.76,128.74,0.04954537]
[1764551770784,3.21739385,128.76,128.74,0.04954537]
[1764551771295,0.05739385,128.76,128.74,0.04954537]
[1764551771495,0.05739385,128.76,128.74,3.39954537]
[1764551772487,0.05739385,128.76,128.74,0.04954537]
[1764551772696,0.05739385,128.76,128.74,3.39954537]
[1764551772888,3.16,128.83,128.74,3.39954537]
[1764551773198,3.16,128.83,128.74,3.35]
[1764551773393,7.09028904,128.87,128.74,3.35]
[1764551773588,3.16,128.86,128.76,3.35]
[1764551773989,0.04716783,128.82,128.8,0.05862008]
[1764551774497,0.04716783,128.82,128.8,3.40862008]
[1764551775889,0.04716783,128.82,128.8,0.05862008]
[1764551776091,0.04716783,128.82,128.8,3.40862008]
[1764551776493,3.16,128.89,128.8,3.40862008]
[1764551776796,3.16,128.89,128.79,7.09028904]
[1764551776996,3.16,128.89,128.78,3.35]
[1764551777200,3.16,128.86,128.78,3.35]
[1764551777402,3.16,128.89,128.78,3.35]
[1764551777601,3.16,128.89,128.82,3.40620751]
[1764551778799,3.16,128.89,128.82,0.05620751]
[1764551779001,3.16,128.88,128.82,0.05620751]
[1764551779298,3.16,128.84,128.82,0.05620751]
[1764551779502,3.16,128.84,128.74,3.35]
[1764551779808,3.27,128.79,128.69,23.30484155]
[1764551780098,3.27,128.79,128.69,3.38]
[1764551780302,3.27,128.76,128.66,6.9948]
[1764551780505,3.27,128.73,128.61,14.44784663]
[1764551780695,0.05311663,128.68,128.66,3.43397227]
[1764551780900,3.27,128.73,128.66,3.43397227]
[1764551781405,6.99,128.76,128.67,3.38]
[1764551781909,3.27,128.75,128.7,0.05254874]
[1764551782096,3.27,128.75,128.7,3.43254874]
[1764551782293,6.99,128.76,128.7,0.05254874]
[1764551782497,10.26,128.76,128.7,0.05254874]
[1764551782698,6.9885,128.78,128.7,3.43254874]
[1764551782906,3.27,128.77,128.73,0.05848882]
[1764551783101,3.27,128.84,128.73,0.05848882]
[1764551783304,3.27,128.8,128.77,0.04907435]
[1764551783604,3.27,128.8,128.77,0.05370962]
[1764551784592,11.06784663,128.83,128.77,0.05370962]
[1764551784593,3.24,128.78,128.77,0.05370962]
[1764551785305,3.24,128.78,128.68,10.2535]
[1764551785704,3.24,128.78,128.69,3.26]
[1764551786404,0.05084249,128.75,128.73,3.26]
[1764551786706,0.04901507,128.75,128.73,3.31783303]
[1764551789995,3.24,128.81,128.73,3.31783303]
[1764551790196,118.0,128.82,128.73,3.26]
[1764551790716,118.0,128.82,128.76,3.26]
[1764551790901,121.24,128.82,128.78,0.05164299]
[1764551791196,3.24,128.81,128.78,0.05164299]
[1764551791401,118.0,128.82,128.78,0.05164299]
[1764551791596,3.24,128.81,128.78,0.05164299]
[1764551792202,3.24,128.78,128.69,3.26]
[1764551792403,3.24,128.78,128.66,3.26]
[1764551792805,3.24,128.74,128.66,3.26]
[1764551793203,0.05779985,128.71,128.69,0.05547957]
[1764551793708,3.24,128.78,128.69,3.31547957]
[1764551794012,3.24,128.78,128.69,3.26]
[1764551794802,3.24,128.78,128.72,0.04971286]
[1764551796703,3.24,128.77,128.72,0.04971286]
[1764551797402,3.24,128.81,128.72,3.30971286]
[1764551797608,3.24,128.81,128.75,0.05391265]
[1764551798305,3.24,128.78,128.75,0.05391265]
[1764551798815,3.24,128.77,128.66,3.26]
[1764551799002,3.24,128.74,128.61,11.06784663]
[1764551799208,3.24,128.74,128.63,3.26]
[1764551799703,0.04996609,128.7,128.67,0.05127633]
[1764551800007,3.28987249,128.7,128.67,0.05765945]
[1764551800412,0.04987249,128.7,128.67,3.31765945]
[1764551800606,0.04987249,128.7,128.67,0.05765945]
[1764551800801,0.04987249,128.7,128.67,3.31765945]
[1764551801515,0.04987249,128.7,128.67,10.31175945]
[1764551801708,0.04987249,128.7,128.68,3.26]
[1764551802208,3.24,128.78,128.69,3.26]
[1764551802608,118.0,128.8,128.71,3.26]
[1764551802809,3.24,128.82,128.75,3.26]
[1764551803310,3.24,128.82,128.77,0.05560747]
[1764551804107,3.24,128.8,128.77,0.05560747]
[1764551804414,3.24,128.8,128.77,0.05023115]
[1764551804809,16.63748515,128.85,128.77,0.05023115]
[1764551804810,3.24,128.78,128.77,0.05023115]
[1764551805016,3.24,128.78,128.71,3.26]
[1764551805413,10.2286,128.78,128.71,3.26]
[1764551806018,0.05196752,128.76,128.73,3.31857624]
[1764551807309,10.2271,128.81,128.73,3.31857624]
[1764551807618,3.24,128.8,128.73,3.26]
[1764551808417,3.24,128.8,128.75,3.31495533]
[1764551808608,3.24,128.8,128.75,0.05495533]
[1764551809409,3.24,128.8,128.75,3.31495533]
[1764551809609,6.9871,128.81,128.75,3.31495533]
[1764551809805,3.24,128.84,128.75,3.31495533]
[1764551810010,3.36,128.82,128.78,0.05346857]
[1764551811520,5.56963852,128.86,128.78,3.38346857]
[1764551811706,3.36,128.84,128.81,0.05233073]
[1764551812414,3.36,128.83,128.81,0.05233073]
[1764551813908,3.36,128.85,128.81,0.05233073]
[1764551814109,5.63209711,128.84,128.81,0.05233073]
[1764551814416,121.36,128.86,128.81,3.38233073]
[1764551814715,121.36,128.86,128.81,0.05233073]
[1764551814716,8.99830098,128.85,128.81,0.05233073]
[1764551814916,3.36,128.85,128.81,0.05233073]
[1764551815317,3.36,128.83,128.81,0.05233073]
[1764551816007,3.36,128.83,128.66,13.9891]
[1764551816008,3.36,128.81,128.71,3.33]
[1764551816208,8.99644423,128.8,128.71,3.33]
[1764551816417,3.36,128.8,128.71,3.33]
[1764551817122,0.05311676,128.77,128.74,0.05363443]
[1764551818712,3.41311676,128.77,128.74,0.05363443]
[1764551821118,0.05311676,128.77,128.74,0.05363443]
[1764551821326,0.05311676,128.77,128.74,3.38363443]
[1764551821712,3.36,128.75,128.74,0.00363443]
[1764551821917,3.36,128.75,128.67,3.33]
[1764551822315,118.0,128.76,128.7,3.33]
[1764551822927,0.05374368,128.74,128.73,3.33]
[1764551823223,118.0,128.76,128.73,3.33]
[1764551823424,118.0,128.76,128.74,3.33]
[1764551824027,118.05017141,128.76,128.74,3.33]
[1764551825411,3.36,128.82,128.76,3.33]
[1764551825817,3.36,128.82,128.75,6.99]
[1764551825818,124.9837,128.87,128.8,3.33]
[1764551826015,10.44227022,128.9,128.8,3.33]
[1764551826219,5.67836335,128.91,128.82,3.33]
[1764551826430,5.67386001,128.92,128.85,3.38863767]
[1764551826625,3.36,128.92,128.87,0.05228248]
[1764551827316,3.36,128.92,128.87,3.38228248]
[1764551828332,10.3392,128.95,128.88,3.33]
[1764551828529,10.3392,128.95,128.9,0.05154818]
[1764551828530,3.36,128.94,128.9,0.05154818]
[1764551829336,3.36,128.97,128.9,3.38154818]
[1764551830225,3.36,128.97,128.9,0.05154818]
[1764551830530,3.36,128.94,128.83,3.33]
[1764551830730,3.36,128.9,128.79,24.25]
[1764551830932,3.36,128.9,128.79,3.33]
[1764551831328,3.36,128.88,128.8,3.33]
[1764551831529,3.36,128.88,128.83,0.05066486]
[1764551831530,0.05729946,128.85,128.83,0.05066486]
[1764551832029,0.05729946,128.85,128.83,3.38066486]
[1764551832229,0.05729946,128.85,128.83,0.05066486]
[1764551832623,0.05729946,128.85,128.75,3.33]
[1764551832624,3.41729946,128.85,128.75,3.33]
[1764551832828,3.36,128.85,128.75,3.33]
[1764551833029,3.36,128.85,128.76,10.3191]
[1764551833231,3.36,128.85,128.76,3.33]
[1764551833731,0.053515,128.82,128.79,0.05445049]
[1764551833930,3.413515,128.82,128.79,0.05445049]
[1764551834133,3.413515,128.82,128.61,35.23003432]
[1764551834134,3.36,128.8,128.71,26.90387179]
[1764551834442,3.36,128.8,128.69,3.33]
[1764551834642,3.36,128.8,128.7,3.33]
[1764551835238,0.05510876,128.76,128.74,0.05135495]
[1764551835432,0.05510876,128.76,128.75,3.33]
[1764551836137,0.05510876,128.76,128.74,3.38135495]
[1764551836434,3.36,128.83,128.75,3.33]
[1764551837432,0.05340144,128.8,128.78,3.38351681]
[1764551837741,3.36,128.86,128.79,3.33]
[1764551837950,3.36,128.89,128.79,3.33]
[1764551838428,3.36,128.89,128.79,10.39608527]
[1764551838837,0.05242251,128.85,128.83,0.0597303]
[1764551839031,3.41242251,128.85,128.83,0.0597303]
[1764551839232,3.36,128.84,128.75,3.33]
[1764551839842,3.34,128.83,128.74,6.9902]
[1764551840337,3.39898733,128.8,128.77,0.05005418]
[1764551841236,0.05898733,128.8,128.77,3.21005418]
[1764551842529,3.34,128.87,128.8,3.16]
[1764551843542,3.34,128.84,128.82,0.05390548]
[1764551844431,0.05464758,128.85,128.82,3.25390548]
[1764551844942,3.36464758,128.85,128.82,0.05390548]
[1764551845148,3.36464758,128.85,128.82,0.00390548]
[1764551845651,3.31,128.83,128.82,0.00390548]
[1764551846035,0.05464758,128.85,128.82,0.00390548]
[1764551846840,0.05464758,128.85,128.82,3.20390548]
[1764551847233,0.05464758,128.85,128.82,0.00390548]
[1764551848045,3.36464758,128.85,128.82,0.00390548]
[1764551849740,3.36464758,128.85,128.55,375.02637539]
[1764551849741,3.31,128.83,128.69,10.26608527]
[1764551849942,3.31,128.8,128.69,10.26608527]
[1764551850150,10.2982,128.79,128.7,3.2]
[1764551850540,3.36957902,128.76,128.73,0.05895059]
[1764551850740,3.36957902,128.76,128.73,0.04992017]
[1764551851646,118.0,128.75,128.73,0.04992017]
[1764551852145,121.31,128.74,128.66,3.2]
[1764551852350,118.0,128.73,128.67,3.2]
[1764551853050,3.36344977,128.71,128.69,0.0527244]
[1764551853346,118.0,128.7,128.69,0.05373959]
[1764551853536,118.0,128.7,128.63,27.24]
[1764551853537,3.31,128.7,128.62,10.26608527]
[1764551853741,121.31,128.69,128.62,3.2]
[1764551854142,3.31,128.73,128.64,10.26608527]
[1764551854344,3.31,128.73,128.65,3.2]
[1764551854542,0.05516764,128.7,128.68,3.25688694]
[1764551856547,0.05516764,128.7,128.68,0.05688694]
[1764551856747,3.36516764,128.7,128.68,0.05688694]
[1764551857656,3.31,128.69,128.61,7.06608527]
[1764551857955,3.31,128.69,128.59,3.2]
[1764551858147,3.31,128.69,128.61,3.2]
[1764551858552,0.05313467,128.66,128.64,0.05345692]
[1764551859047,3.36313467,128.66,128.64,0.05345692]
[1764551859244,3.36313467,128.66,128.59,7.06608527]
[1764551859449,3.31,128.66,128.56,7.06608527]
[1764551859652,3.31,128.66,128.53,10.26608527]
[1764551860158,3.31,128.66,128.54,3.2]
[1764551860357,3.31,128.6,128.59,0.05525346]
[1764551860653,3.31,128.6,128.58,0.05029835]
[1764551860958,3.36073453,128.6,128.58,0.05029835]
[1764551861152,0.05073453,128.6,128.58,0.05029835]
[1764551863253,0.05073453,128.6,128.58,3.25029835]
[1764551863853,3.36073453,128.6,128.58,0.05029835]
[1764551864659,0.05073453,128.6,128.58,0.05029835]
[1764551864861,3.36073453,128.6,128.58,0.05029835]
[1764551865858,3.36073453,128.6,128.52,107.20808527]
[1764551866066,3.31,128.59,128.52,93.14]
[1764551866461,3.31,128.59,128.48,3.2]
[1764551866766,3.31,128.57,128.48,3.2]
[1764551866958,0.05639567,128.55,128.52,3.25338633]
[1764551867263,3.31,128.61,128.53,10.26608527]
[1764551868256,3.31,128.61,128.53,3.2]
[1764551868462,0.05030865,128.58,128.56,0.05759446]
[1764551873558,0.05030865,128.58,128.56,3.44759446]
[1764551873759,3.19,128.64,128.56,3.44759446]
[1764551873966,3.19,128.64,128.56,3.39]
[1764551874263,3.19,128.64,128.57,6.9995]
[1764551874468,3.19,128.64,128.57,10.3895]
[1764551874866,3.24178781,128.62,128.59,0.05513581]
[1764551875169,0.05158871,128.62,128.59,0.05336368]
[1764551876365,0.05158871,128.62,128.59,3.44336368]
[1764551876567,3.19,128.68,128.61,10.45608527]
[1764551877068,3.19,128.68,128.62,3.39]
[1764551877271,3.19,128.7,128.62,3.39]
[1764551877464,3.19,128.7,128.61,7.06608527]
[1764551877465,3.19,128.7,128.63,3.39]
[1764551877663,0.05710113,128.68,128.65,3.44130759]
[1764551877860,3.19,128.73,128.65,3.39]
[1764551878066,0.0559172,128.68,128.65,3.39]
[1764551878574,3.2459172,128.68,128.65,0.05119163]
[1764551879875,0.0559172,128.68,128.65,3.44119163]
[1764551880571,0.0559172,128.68,128.65,0.05119163]
[1764551880771,121.19,128.67,128.65,0.05119163]
[1764551881177,118.0,128.67,128.65,0.05119163]
[1764551882670,118.0,128.66,128.65,0.05119163]
[1764551885273,3.19,128.66,128.59,10.3887]
[1764551885577,118.0,128.65,128.59,10.3887]
[1764551886270,0.05565788,128.63,128.61,0.04971881]
[1764551886671,0.05565788,128.63,128.61,3.43971881]
[1764551887579,118.0,128.65,128.62,3.39]
[1764551888676,118.0496411,128.65,128.62,3.39]
[1764551889581,118.0,128.69,128.65,3.39]
[1764551889777,121.19,128.69,128.64,3.39]
[1764551890382,3.19,128.76,128.7,6.9926]
[1764551890680,3.19,128.8,128.71,3.39]
[1764551890880,3.19,128.8,128.72,3.44779458]
[1764551891176,3.19,128.76,128.75,0.05505265]
[1764551891376,3.19,128.76,128.69,3.39]
[1764551892084,3.19,128.75,128.62,3.39]
[1764551892282,3.19,128.72,128.62,3.39]
[1764551892586,3.19,128.67,128.66,0.05399419]
[1764551893379,3.19,128.66,128.59,6.9984]
[1764551893585,3.19,128.66,128.58,3.39]
[1764551893784,3.19,128.66,128.54,96.63]
[1764551893979,3.19,128.64,128.57,3.39]
[1764551894183,0.05862396,128.62,128.59,0.05766884]
[1764551894986,0.05862396,128.62,128.59,3.44766884]
[1764551897086,0.05862396,128.62,128.59,10.44606884]
[1764551897678,0.05862396,128.62,128.59,3.44766884]
[1764551899284,0.05862396,128.62,128.61,3.39]
[1764551901084,0.05862396,128.62,128.59,0.05766884]
[1764551902186,0.05862396,128.62,128.59,3.20766884]
[1764551902387,0.05862396,128.62,128.59,37.46596884]
[1764551902583,0.05862396,128.62,128.6,3.15]
[1764551904485,0.05862396,128.62,128.61,3.41]
[1764551905280,117.79,128.67,128.62,6.997]
[1764551905485,117.79,128.67,128.62,10.407]
[1764551905790,114.59,128.67,128.63,3.41]
[1764551905987,114.59,128.67,128.64,10.4059]
[1764551906492,114.6440788,128.67,128.64,10.45962098]
[1764551907090,114.59,128.66,128.65,3.41]
[1764551907278,114.59,128.66,128.64,7.04962098]
[1764551907878,114.59,128.7,128.66,3.41]
[1764551908083,3.2,128.74,128.67,3.41]
[1764551908582,3.2,128.74,128.62,27.26]
[1764551908583,3.2,128.78,128.7,3.41]
[1764551908986,0.05682045,128.75,128.73,3.46618316]
[1764551909292,0.04948226,128.75,128.73,20.40290485]
[1764551909493,0.04948226,128.75,128.73,3.46290485]
[1764551909692,0.04948226,128.75,128.73,0.05290485]
[1764551910487,3.24948226,128.75,128.73,0.05290485]
[1764551911488,0.04948226,128.75,128.73,0.05290485]
[1764551911688,0.04948226,128.75,128.73,3.46290485]
[1764551911888,3.2,128.82,128.74,3.41]
[1764551912193,3.2,128.82,128.72,11.10647429]
[1764551912391,3.2,128.81,128.72,11.10647429]
[1764551912594,3.2,128.81,128.71,34.1519]
[1764551912796,3.2,128.81,128.71,6.9919]
[1764551912990,3.25116012,128.77,128.75,0.05272085]
[1764551913190,3.25170163,128.77,128.75,0.05066144]
[1764551913792,117.79,128.76,128.75,0.05066144]
[1764551913993,3.2,128.76,128.75,0.05066144]
[1764551914384,3.2,128.76,128.7,10.4024]
[1764551914588,3.2,128.76,128.68,23.85435848]
[1764551914788,3.2,128.76,128.68,3.41]
[1764551915283,3.2,128.76,128.68,10.4038]
[1764551915490,0.05309403,128.73,128.71,0.05836419]
[1764551917191,3.2,128.81,128.71,3.46836419]
[1764551917386,3.2,128.81,128.71,3.41]
[1764551917793,3.2,128.81,128.72,10.4014]
[1764551918099,3.2,128.75,128.65,96.65]
[1764551918399,0.05443361,128.71,128.69,0.05567258]
[1764551918991,0.05443361,128.71,128.69,3.46567258]
[1764551919390,106.0681,128.79,128.71,3.41]
[1764551919596,106.0681,128.79,128.75,3.41]
[1764551919992,106.0681,128.79,128.73,11.10647429]
[1764551920190,106.0681,128.79,128.74,6.9903]
[1764551920395,3.24990138,128.78,128.75,0.04919857]
[1764551921003,0.04990138,128.78,128.75,0.04919857]
[1764551921396,3.24990138,128.78,128.75,0.04919857]
[1764551922600,0.04990138,128.78,128.75,0.04919857]
[1764551922801,0.04990138,128.78,128.75,3.45919857]
[1764551923002,106.0681,128.77,128.75,3.45919857]
[1764551923407,106.0681,128.77,128.76,3.41]
[1764551923608,0.04990138,128.78,128.76,3.41]
[1764551924407,0.04990138,128.78,128.75,3.45919857]
[1764551925506,3.24990138,128.78,128.75,0.04919857]
[1764551925707,106.0681,128.77,128.75,0.04919857]
[1764551926600,106.0681,128.77,128.75,3.45919857]
[1764551926904,106.0681,128.77,128.75,0.04919857]
[1764551927306,106.0681,128.77,128.76,10.3995]
[1764551928296,109.2681,128.85,128.78,10.3981]
[1764551929203,3.2,128.84,128.78,10.3981]
[1764551929510,3.2,128.84,128.8,0.0510087]
[1764551932108,109.2881,128.85,128.8,3.1910087]
[1764551932303,109.2881,128.85,128.81,6.9866]
[1764551932505,109.2881,128.85,128.8,3.1910087]
[1764551932897,3.22,128.9,128.8,3.1910087]
[1764551933099,3.22,128.9,128.84,0.05886871]
[1764551933512,3.22,128.9,128.84,7.04376871]
[1764551934104,3.22,128.88,128.84,0.05886871]
[1764551934301,3.22,128.88,128.77,3.14]
[1764551934611,3.22,128.86,128.77,3.14]
[1764551934810,3.22,128.92,128.8,3.14]
[1764551935010,3.22,128.91,128.8,3.14]
[1764551935211,0.05265937,128.87,128.84,0.0548426]
[1764551936003,3.27265937,128.87,128.84,0.0548426]
[1764551939217,3.27265937,128.87,128.79,6.9877]
[1764551939407,3.22,128.87,128.79,6.9877]
[1764551939710,3.22,128.85,128.79,6.9877]
[1764551940212,0.0577103,128.83,128.81,0.05025562]
[1764551940512,3.2777103,128.83,128.81,0.05025562]
[1764551940913,3.2777103,128.83,128.7,3.14]
[1764551940914,3.22,128.81,128.7,3.14]
[1764551941113,3.22,128.81,128.73,3.14]
[1764551941815,0.05125098,128.78,128.76,0.05894289]
[1764551942316,0.05125098,128.78,128.76,3.19894289]
[1764551942518,0.05125098,128.78,128.76,0.05894289]
[1764551943310,0.05125098,128.78,128.76,7.04824289]
[1764551943510,0.05125098,128.78,128.76,0.05894289]
[1764551943706,11.10647429,128.86,128.77,3.14]
[1764551943707,3.22,128.86,128.77,3.14]
[1764551944117,106.0681,128.87,128.8,3.14]
[1764551944317,3.22,128.9,128.81,14.24647429]
[1764551944719,0.05678256,128.87,128.84,0.05177568]
[1764551945314,3.27678256,128.87,128.84,0.05177568]
[1764551945916,0.05678256,128.87,128.84,3.19177568]
[1764551946622,0.05678256,128.87,128.84,27.03984583]
[1764551946822,0.05678256,128.87,128.84,3.19177568]
[1764551947821,0.05678256,128.87,128.84,0.05177568]
[1764551948121,0.05678256,128.87,128.84,3.19177568]
[1764551948314,0.05678256,128.87,128.84,10.17647568]
[1764551948923,0.05678256,128.87,128.85,10.1243]
[1764551949117,3.22,128.92,128.84,0.05177568]
[1764551949321,109.2881,128.91,128.83,3.14]
[1764551949726,3.22,128.94,128.85,3.14]
[1764551950123,0.05569621,128.91,128.88,0.05835302]
[1764551951421,0.05569621,128.91,128.88,3.19835302]
[1764551953430,0.05569621,128.91,128.9,3.14]
[1764551954930,3.22,128.96,128.91,10.1212]
[1764551955928,3.22,128.96,128.92,0.05400452]
[1764551956432,3.22,128.94,128.84,26.4647816]
[1764551956626,3.22,128.94,128.84,3.14]
[1764551956826,3.22,128.93,128.85,6.9844]
[1764551957026,3.22,128.93,128.84,3.14]
[1764551957229,3.22,128.93,128.81,96.24]
[1764551957433,3.22,128.87,128.81,93.1]
[1764551957730,3.22,128.87,128.81,116.6904675]
[1764551958132,3.22,128.87,128.81,30.5770675]
[1764551958334,3.22,128.87,128.81,23.5904675]
[1764551958533,5.71618005,128.92,128.83,0.05115032]
[1764551958534,3.26924298,128.85,128.83,0.05115032]
[1764551958734,3.27338678,128.85,128.83,0.05006944]
[1764551959033,0.05338678,128.85,128.83,0.05006944]
[1764551959832,3.34338678,128.85,128.83,0.05006944]
[1764551960737,3.29,128.84,128.75,3.16]
[1764551960933,3.29,128.84,128.72,7.0686536]
[1764551961236,3.29,128.82,128.73,27.2]
[1764551961432,3.29,128.82,128.74,6.9901]
[1764551961433,6.9863,128.82,128.74,6.9901]
[1764551961737,3.34725603,128.79,128.77,0.05418572]
[1764551961934,0.05725603,128.79,128.77,0.05418572]
[1764551962130,3.34725603,128.79,128.77,0.05418572]
[1764551963535,4.90725603,128.79,128.71,100.0517]
[1764551963738,3.29,128.78,128.71,100.0517]
[1764551964437,3.29,128.75,128.73,0.05793343]
[1764551964637,3.29,128.75,128.68,3.34]
[1764551964839,3.29,128.75,128.68,10.4086536]
[1764551965432,3.26,128.78,128.69,10.3328]
[1764551965637,0.0558643,128.75,128.72,0.05632871]
[1764551965838,0.0558643,128.75,128.72,3.39632871]
[1764551966039,0.0558643,128.75,128.72,0.05632871]
[1764551966539,0.0558643,128.75,128.72,3.39632871]
[1764551968440,0.0558643,128.75,128.72,0.05632871]
[1764551968642,3.3158643,128.75,128.72,0.05632871]
[1764551969643,3.26,128.74,128.64,7.0686536]
[1764551969844,3.26,128.74,128.63,6.9962]
[1764551970647,3.26,128.74,128.59,3.34]
[1764551970648,3.26,128.69,128.59,3.34]
[1764551970846,3.26,128.68,128.57,100.1686536]
[1764551971142,3.26,128.66,128.57,93.1]
[1764551971540,3.26,128.65,128.57,93.1]
[1764551971741,3.26,128.61,128.6,0.05440717]
[1764551971944,3.26,128.61,128.57,93.1]
[1764551973046,3.26,128.61,128.49,3.34]
[1764551973250,3.26,128.6,128.5,3.34]
[1764551973442,3.26,128.6,128.41,93.16]
[1764551973443,3.26,128.6,128.48,17.4128536]
[1764551973640,3.26,128.6,128.49,3.34]
[1764551974048,0.05137249,128.56,128.53,0.0526563]